fUSD/lending_fUSD_20250402
["ID","MTS","AMOUNT","RATE_DAILY","PERIOD"]
[357045718,1743628100579,-171.05371083,0.000149,2]
[357045719,1743628100607,-1465.49875491,0.000149,2]
[357045720,1743628124606,1290.293648,0.00014825,2]
[357045721,1743628135755,407.0,0.00034647,120]
[357045722,1743628141307,3114.0,0.00034647,90]
[357045723,1743628142075,3114.0,0.00034647,90]
[357045724,1743628142439,3114.0,0.00034647,90]
[357045725,1743628143237,3114.0,0.00034647,90]
[357045726,1743628143618,3118.0,0.00034647,90]
[357045727,1743628144023,3114.0,0.00034647,90]
[357045728,1743628145018,984.62,0.00034647,30]
[357045729,1743628149855,-2226.51984509,0.000149,2]
[357045730,1743628149886,-24.89514479,0.000149,2]
[357045731,1743628150469,3735.29050824,0.00034647,60]
[357045732,1743628152318,271.5,0.00034647,30]
[357045733,1743628167170,-433.65475521,0.000149,2]
[357045734,1743628167191,-498.37062997,0.00014973,2]
[357045735,1743628167212,-500.0,0.00014973,2]
[357045736,1743628167233,-482.26619861,0.00014973,2]
[357045737,1743628167255,-500.0,0.00014973,2]
[357045738,1743628167278,-500.0,0.00014973,2]
[357045739,1743628167301,-500.0,0.00014973,2]
[357045740,1743628167321,-500.0,0.00014973,2]
[357045741,1743628167341,-181.34053378,0.00014973,2]
[357045742,1743628167361,-150.0,0.00014989,2]
[357045743,1743628167382,-274.92089843,0.0001499,2]
[357045744,1743628204214,1025.07629914,0.00034647,30]
[357045745,1743628205096,696.6123824,0.00034647,30]
[357045761,1743628232391,-253.0,0.00014989,2]
[357045762,1743628232463,-47.0,0.00014989,2]
[357045763,1743628232473,-3198.72659339,0.0001499,2]
[357045764,1743628232685,-934.17307929,0.0001499,2]
[357045765,1743628232696,-1029.29698763,0.0001499,2]
[357045775,1743628238412,-3313.7464401,0.0001499,2]
[357045776,1743628238456,-0.30662129,0.0001499,2]
[357045777,1743628238468,-264.50407627,0.0001499,2]
[357045778,1743628238480,-277.57103379,0.0001499,2]
[357045779,1743628238492,-1402.60516824,0.0001499,2]
[357045780,1743628238501,-1520.23473676,0.0001499,2]
[357045783,1743628238603,-6519.34245051,0.0001499,2]
[357045785,1743628238616,-255.390135,0.0001499,2]
[357045788,1743628238632,-535.26542884,0.0001499,2]
[357045790,1743628238643,-630.6133071,0.0001499,2]
[357045793,1743628238663,-960.08394179,0.0001499,2]
[357045795,1743628238672,-5508.04723162,0.00015,2]
[357045797,1743628238684,-633.87684918,0.00015,2]
[357045798,1743628238695,-1851.78830177,0.00015,2]
[357045799,1743628238718,-437.25499645,0.00015,2]
[357045800,1743628238730,-3115.96182496,0.00015,2]
[357045801,1743628238741,-16952.47520465,0.00015,2]
[357045811,1743628240847,-0.0024618,0.00015,2]
[357045812,1743628240859,-2635.91484755,0.00015,2]
[357045813,1743628240891,-1049.4999999,0.00015,2]
[357045814,1743628240903,-356.74514698,0.00015,2]
[357045815,1743628240915,-333.10575707,0.00015,2]
[357045816,1743628240927,-326.3798437,0.00015,2]
[357045817,1743628240940,-625.08212539,0.00015,2]
[357045818,1743628240991,-354.79,0.00015,2]
[357045819,1743628241003,-3470.53647137,0.00015,2]
[357045820,1743628241015,-373.69669786,0.00015,2]
[357045821,1743628241027,-372.64,0.00015,2]
[357045869,1743628247128,-3652.86494765,0.00015,2]
[357045870,1743628247139,-46564.64260199,0.00015,2]
[357045871,1743628247158,-97614.80146646,0.00015,2]
[357045872,1743628247169,-21517.13105024,0.00015,2]
[357045873,1743628247180,-709.58,0.00015,2]
[357045878,1743628290190,-214.16260374,0.000149,2]
[357045879,1743628323728,151.0,0.00034647,30]
[357045880,1743628324403,156.587,0.00034647,30]
[357045881,1743628325030,162.380719,0.00034647,30]
[357045882,1743628325652,168.3888056,0.00034647,30]
[357045883,1743628326296,168.3888056,0.00034647,30]
[357045884,1743628328974,500.0,0.00034647,30]
[357045885,1743628329392,151.75157,0.0001735,18]
[357045886,1743628329610,518.5,0.00034647,30]
[357045887,1743628330278,537.6845,0.00034647,30]
[357045888,1743628330902,557.5788265,0.00034647,30]
[357045889,1743628331545,578.20924308,0.00034647,30]
[357045890,1743628332197,599.60298507,0.00034647,30]
[357045891,1743628332840,621.78829552,0.00034647,30]
[357045892,1743628333632,644.79446246,0.00034647,30]
[357045893,1743628334270,668.65185757,0.00034647,30]
[357045894,1743628334895,693.3919763,0.00034647,30]
[357045895,1743628335719,719.04747942,0.00034647,30]
[357045896,1743628336411,745.65223616,0.00034647,30]
[357045897,1743628337156,773.2413689,0.00034647,30]
[357045898,1743628337739,801.85129955,0.00034647,30]
[357045899,1743628338404,831.51979763,0.00034647,30]
[357045900,1743628339041,862.28603014,0.00034647,30]
[357045901,1743628339733,862.28603014,0.00034647,30]
[357045902,1743628367618,-171.04350908,0.00014873,2]
[357045903,1743628554661,1000.0,0.00034646,30]
[357045904,1743628555212,1000.0,0.00034646,30]
[357045905,1743628555782,1000.0,0.00034646,30]
[357045906,1743628556844,1000.0,0.00034646,30]
[357045907,1743628557419,1000.0,0.00034646,30]
[357045908,1743628557996,1000.0,0.00034646,30]
[357045909,1743628558579,1000.0,0.00034646,30]
[357045910,1743628559142,1000.0,0.00034646,30]
[357045911,1743628559720,1000.0,0.00034646,30]
[357045912,1743628560289,1000.0,0.00034646,30]
[357045913,1743628560861,1000.0,0.00034646,30]
[357045914,1743628561476,1000.0,0.00034646,30]
[357045915,1743628562094,1000.0,0.00034646,30]
[357045916,1743628562680,1000.0,0.00034646,30]
[357045917,1743628563683,1000.0,0.00034646,30]
[357045918,1743628564246,1000.0,0.00034646,30]
[357045919,1743628564891,1000.0,0.00034646,30]
[357045920,1743628565940,1000.0,0.00034646,30]
[357045921,1743628566511,1000.0,0.00034646,30]
[357045922,1743628567078,1000.0,0.00034646,30]
[357045923,1743628567664,1000.0,0.00034646,30]
[357045924,1743628568275,1000.0,0.00034646,30]
[357045925,1743628568817,1000.0,0.00034646,30]
[357045926,1743628569427,1000.0,0.00034646,30]
[357045927,1743628570016,1000.0,0.00034646,30]
[357045928,1743628571508,1000.0,0.00034646,30]
[357045929,1743628572208,1000.0,0.00034646,30]
[357045930,1743628572923,1000.0,0.00034646,30]
[357045931,1743628573952,1000.0,0.00034646,30]
[357045932,1743628574562,1000.0,0.00034646,30]
[357045933,1743628575165,1000.0,0.00034646,30]
[357045934,1743628575763,1000.0,0.00034646,30]
[357045935,1743628576360,744.70390894,0.00034646,30]
[357045936,1743628625958,631.30884475,0.00034646,30]
[357045937,1743628661672,1500.0,0.00032,120]
[357045938,1743628679668,169.42,0.00014074,2]
[357045939,1743628682083,350.0,0.00014936,12]
[357045940,1743628682119,-300.0,0.00014899,2]
[357045941,1743628710279,302.186,0.000147,2]
[357045942,1743628722325,2018.50056376,0.00032,120]
[357045943,1743628775329,173.99,0.0002626,120]
[357045944,1743628801986,-153.90742366,0.00014899,2]
[357045945,1743628802298,350.0,0.00014936,12]
[357045946,1743628862604,-300.0,0.00014899,2]
[357045947,1743628864837,-150.0,0.00014899,2]
[357045948,1743628975941,150.0,0.0001,2]
[357045949,1743629097807,-422.69406773,0.0001489,2]
[357045950,1743629108964,787.9710327,0.00034643,90]
[357045951,1743629111353,999.999994,0.00034643,120]
[357045952,1743629112852,2268.55770673,0.00034643,120]
[357045953,1743629113227,580.63127274,0.00034643,91]
[357045954,1743629113401,576.62533673,0.00034643,30]
[357045955,1743629114858,69940.5999138,0.00034643,30]
[357045956,1743629120530,692.68639688,0.00034643,120]
[357045957,1743629121311,2001.03695612,0.00034643,120]
[357045958,1743629122301,1372.15663031,0.00034643,120]
[357045959,1743629124546,2617.02951239,0.00034643,120]
[357045960,1743629127786,935.58531551,0.00034643,30]
[357045961,1743629129108,2088.01345541,0.00034643,30]
[357045962,1743629129943,815.19620207,0.00034643,30]
[357045963,1743629135668,537.025006,0.00014815,2]
[357045964,1743629137341,219.61402288,0.00034643,30]
[357045965,1743629138870,221.39214351,0.00034643,120]
[357045966,1743629141162,1323.62388163,0.00034643,120]
[357045967,1743629142873,945.67531608,0.00034643,120]
[357045968,1743629144472,150.12195243,0.00034643,30]
[357045969,1743629145099,1601.20150358,0.00034643,120]
[357045970,1743629148499,351.3389338,0.00034643,120]
[357045971,1743629158514,2664.9602868,0.00034643,30]
[357045972,1743629163040,662.9522802,0.00034643,90]
[357045973,1743629167329,2526.18223824,0.00034643,120]
[357045974,1743629170467,823.590256,0.00034643,120]
[357045975,1743629170705,309.13459538,0.00034643,30]
[357045976,1743629171626,240.42687724,0.00034643,60]
[357045977,1743629175101,324.15475488,0.00034643,30]
[357045978,1743629176426,1929.2721948,0.00034643,120]
[357045980,1743629178736,208.39198272,0.00034643,120]
[357045981,1743629182594,170.29513632,0.00034643,120]
[357045982,1743629184449,1906.40019636,0.00034643,120]
[357045983,1743629190324,1234.4691532,0.00034643,120]
[357045984,1743629193748,235.52947251,0.00034643,60]
[357045985,1743629216346,216.02205971,0.00034643,120]
[357045986,1743629223517,1849.52688087,0.00034643,120]
[357045987,1743629224015,1376.62356903,0.00034643,120]
[357045988,1743629228929,169.5368378,0.00034643,30]
[357045990,1743629232248,-2137.09842063,0.0001489,2]
[357045991,1743629233169,-250.0,0.0001489,2]
[357045992,1743629236659,385.60970203,0.00034643,120]
[357045993,1743629241119,-6225.06089504,0.0001489,2]
[357045994,1743629241141,-150.0,0.00014899,2]
[357045995,1743629241161,-1249.28769626,0.000149,2]
[357045996,1743629241183,-418.4298,0.000149,2]
[357045997,1743629241206,-4158.65228236,0.000149,2]
[357045999,1743629243106,-4009.04869814,0.000149,2]
[357046000,1743629258340,957.4229643,0.00034643,120]
[357046001,1743629262652,2028.5597565,0.00034643,120]
[357046002,1743629263497,150.12347685,0.00034643,120]
[357046003,1743629268004,1049.14354786,0.00034643,120]
[357046004,1743629271073,1082.40869191,0.00034643,120]
[357046005,1743629275326,441.38435457,0.00034643,30]
[357046006,1743629276462,962.23480301,0.00034643,120]
[357046007,1743629284644,763.42536409,0.00034643,30]
[357046010,1743629286135,952.11794914,0.00034643,120]
[357046011,1743629293090,320.88191219,0.00034643,30]
[357046012,1743629293193,1492.79229747,0.00034643,30]
[357046014,1743629310706,358.32653798,0.00034643,120]
[357046015,1743629315176,1283.19792569,0.00034643,120]
[357046016,1743629315633,2031.96389416,0.00034643,120]
[357046017,1743629316521,221.948449,0.00034643,30]
[357046018,1743629317054,155.22862759,0.00034643,120]
[357046019,1743629317086,1650.50046191,0.00034643,30]
[357046020,1743629317116,3819.36325025,0.00034643,120]
[357046021,1743629317913,243.37223219,0.00034643,30]
[357046022,1743629317947,2694.2689893,0.00034643,30]
[357046023,1743629317998,894.26027438,0.00034643,120]
[357046024,1743629318317,1761.3041248,0.00034643,30]
[357046025,1743629318470,2328.24082731,0.00034643,30]
[357046026,1743629318805,1275.77156461,0.00034643,120]
[357046027,1743629319305,502.8703962,0.00034643,90]
[357046028,1743629319799,4372.15127753,0.00034643,120]
[357046029,1743629320918,667.11988389,0.00034643,120]
[357046030,1743629321551,1293.94363638,0.00034643,120]
[357046031,1743629321673,1098.84365687,0.00034643,120]
[357046032,1743629322807,843.26917576,0.00034643,120]
[357046033,1743629323554,1295.00412018,0.00034643,120]
[357046035,1743629324203,979.07115259,0.00034643,120]
[357046036,1743629324304,211.36888836,0.00034643,120]
[357046037,1743629325156,210.7753707,0.00034643,120]
[357046038,1743629326091,262.43600686,0.00034643,30]
[357046039,1743629326519,310.02076094,0.00034643,120]
[357046040,1743629326855,507.35092304,0.00034643,120]
[357046041,1743629327441,604.80211326,0.00034643,120]
[357046042,1743629327807,408.63232651,0.00034643,120]
[357046043,1743629330368,197.04823182,0.00034643,30]
[357046044,1743629338209,-300.0,0.00014899,2]
[357046045,1743629338240,-9371.59343853,0.000149,2]
[357046046,1743629338286,-7240.63367412,0.000149,2]
[357046050,1743629363007,-300.0,0.00014899,2]
[357046051,1743629363039,-9709.83798079,0.000149,2]
[357046052,1743629363089,-7506.94571921,0.000149,2]
[357046056,1743629387943,-10360.17365479,0.000149,2]
[357046057,1743629388043,-7538.02120437,0.000149,2]
[357046058,1743629402990,-152.35,0.000149,2]
[357046059,1743629403984,350.0,0.00014936,12]
[357046063,1743629417572,-39458.80454769,0.000149,2]
[357046064,1743629417595,-8456.28255042,0.000149,2]
[357046065,1743629417619,-3483.55118784,0.000149,2]
[357046066,1743629417641,-171.05371082,0.000149,2]
[357046067,1743629417667,-500.0,0.00014973,2]
[357046068,1743629417691,-233.81001591,0.00014973,2]
[357046069,1743629417714,-500.0,0.00014973,2]
[357046070,1743629417740,-244.20908264,0.00014974,2]
[357046071,1743629417766,-237479.22035098,0.00015,2]
[357046072,1743629417786,-1969.60774267,0.00015,2]
[357046073,1743629417807,-7666.63967194,0.00015,2]
[357046074,1743629417828,-18230.90698238,0.00015,2]
[357046075,1743629417849,-782012.02351493,0.00015,2]
[357046076,1743629417871,-150.0,0.00015,2]
[357046077,1743629417895,-1010509.66760063,0.00015,2]
[357046078,1743629417917,-23684.87592287,0.00015,2]
[357046090,1743629431598,-304.19610755,0.00015264,2]
[357046091,1743629431612,-650.08350238,0.00015264,2]
[357046092,1743629431623,-392.48566739,0.00015264,2]
[357046093,1743629431638,-7813.91936148,0.00015264,2]
[357046094,1743629431649,-13299.58063852,0.00015264,2]
[357046095,1743629431665,-383.3023151,0.00015264,2]
[357046096,1743629431676,-544.02,0.00015264,2]
[357046097,1743629431699,-422.68869,0.00015264,2]
[357046098,1743629431711,-8337.29440998,0.00015264,2]
[357046099,1743629431721,-500.0,0.00015473,2]
[357046100,1743629431730,-1689.91,0.00015589,2]
[357046101,1743629431741,-169.42,0.00015834,2]
[357046102,1743629431751,-250.0,0.00016379,2]
[357046103,1743629431760,-350.0,0.00016379,12]
[357046104,1743629431770,-250.0,0.0001639,2]
[357046105,1743629431780,-250.0,0.0001639,2]
[357046106,1743629431790,-350.0,0.0001639,12]
[357046107,1743629431800,-1748.18,0.00017165,2]
[357046108,1743629431809,-23900.0,0.00017168,2]
[357046109,1743629431819,-200.0,0.00017194,2]
[357046110,1743629431831,-1852.42,0.00017331,2]
[357046111,1743629431840,-1389.96,0.00017446,2]
[357046113,1743629431850,-179.33,0.0001746,2]
[357046114,1743629431861,-1931.47,0.00017477,2]
[357046115,1743629431870,-270.31,0.00017481,2]
[357046116,1743629431880,-150.0,0.00017485,7]
[357046117,1743629431890,-500.0,0.00017507,2]
[357046118,1743629431900,-173.99,0.00017507,2]
[357046119,1743629431909,-152.23,0.00017507,2]
[357046120,1743629431919,-8112.1,0.00017507,2]
[357046121,1743629431928,-36883.82,0.00017507,2]
[357046122,1743629431937,-2751.0,0.00017507,2]
[357046123,1743629431947,-150.0,0.00017517,2]
[357046124,1743629431957,-187.4,0.00017535,2]
[357046126,1743629431966,-533.334,0.00017535,2]
[357046127,1743629431975,-500.0,0.00017573,2]
[357046128,1743629431984,-313.51591052,0.00017573,2]
[357046129,1743629431993,-605.15964694,0.00017573,2]
[357046130,1743629432003,-564.08006076,0.00017573,2]
[357046131,1743629432012,-500.0,0.00017573,2]
[357046132,1743629432022,-169.42,0.00017593,2]
[357046134,1743629432032,-2000.0,0.00017596,2]
[357046136,1743629432041,-2231.86,0.00017609,2]
[357046139,1743629432051,-200.0,0.00017656,2]
[357046141,1743629432061,-3694.5,0.00017673,2]
[357046143,1743629432070,-253.001221,0.00017773,2]
[357046145,1743629432079,-4691.19,0.00017773,2]
[357046147,1743629432088,-1689.91,0.00017853,2]
[357046149,1743629432097,-167.67,0.00017897,2]
[357046151,1743629432107,-250.0,0.00018012,2]
[357046153,1743629432116,-500.0,0.00018012,3]
[357046154,1743629432126,-1000.0,0.00018027,2]
[357046157,1743629432136,-317.97108133,0.00018173,2]
[357046159,1743629432145,-500.0,0.00018173,2]
[357046161,1743629432155,-150.77059524,0.00018173,2]
[357046162,1743629432164,-213.6707104,0.00018173,2]
[357046165,1743629432174,-165.96,0.00018355,2]
[357046167,1743629432183,-2564.16,0.00018356,2]
[357046169,1743629432192,-153.18,0.00018385,2]
[357046171,1743629432201,-14519.8,0.00018533,2]
[357046172,1743629432211,-257.31,0.00018533,2]
[357046173,1743629432220,-299.99,0.00018533,4]
[357046174,1743629432229,-150.99,0.00018533,2]
[357046175,1743629432238,-6448.93,0.00018533,2]
[357046176,1743629432248,-170.46,0.0001858,2]
[357046177,1743629432258,-151.0,0.00018622,2]
[357046178,1743629432268,-152.629964,0.00018622,2]
[357046179,1743629432277,-294.759302,0.00018622,2]
[357046180,1743629432286,-153.731136,0.00018622,2]
[357046181,1743629432296,-8456.28255034,0.00018622,2]
[357046182,1743629432306,-3483.55118777,0.00018622,2]
[357046183,1743629432315,-167.67,0.00018636,2]
[357046184,1743629432324,-300.0,0.00018813,2]
[357046185,1743629432334,-207.11068127,0.00019,2]
[357046186,1743629432343,-224.9865943,0.00019,2]
[357046187,1743629432352,-410.00390355,0.00019,2]
[357046188,1743629432361,-7580.79731791,0.00019,2]
[357046189,1743629432371,-151.0,0.00019206,2]
[357046190,1743629432380,-151.0,0.00019206,2]
[357046191,1743629432390,-151.0,0.00019206,2]
[357046192,1743629432400,-151.0,0.00019206,2]
[357046193,1743629432409,-151.0,0.00019206,2]
[357046194,1743629432419,-151.0,0.00019206,2]
[357046195,1743629432428,-151.0,0.00019206,2]
[357046196,1743629432438,-162.467815,0.00019206,2]
[357046197,1743629432447,-151.0,0.00019206,2]
[357046198,1743629432456,-292.13785,0.00019206,2]
[357046199,1743629432466,-151.0,0.00019206,2]
[357046200,1743629432476,-239.185709,0.00019206,2]
[357046201,1743629432485,-151.947987,0.00019206,2]
[357046202,1743629432494,-284.598522,0.00019206,2]
[357046203,1743629432503,-151.0,0.00019206,2]
[357046204,1743629432512,-151.0,0.00019206,2]
[357046205,1743629432521,-151.0,0.00019206,2]
[357046206,1743629432530,-151.0,0.00019206,2]
[357046207,1743629432539,-151.0,0.00019206,2]
[357046208,1743629432549,-151.0,0.00019206,2]
[357046209,1743629432558,-169.485123,0.00019206,2]
[357046210,1743629432567,-169.485123,0.00019206,2]
[357046211,1743629432576,-2112.353602,0.00019206,2]
[357046212,1743629432586,-2112.353602,0.00019206,2]
[357046213,1743629432596,-169.42,0.00019352,2]
[357046214,1743629432607,-167.67,0.00019374,2]
[357046215,1743629432616,-2486.79,0.00019515,2]
[357046216,1743629432626,-2486.79,0.0001952,2]
[357046217,1743629432636,-2486.79,0.00019525,2]
[357046218,1743629432647,-2486.79,0.0001953,2]
[357046219,1743629432659,-2486.79,0.00019535,2]
[357046220,1743629432742,-2486.79,0.0001954,2]
[357046221,1743629432752,-2486.79,0.00019545,2]
[357046222,1743629432762,-2486.79,0.00019551,2]
[357046223,1743629432775,-2486.79,0.00019556,2]
[357046224,1743629432785,-2486.79,0.00019561,2]
[357046225,1743629432795,-2486.79,0.00019566,2]
[357046226,1743629432804,-2486.79,0.00019571,2]
[357046227,1743629432813,-2486.79,0.00019576,2]
[357046228,1743629432823,-2486.79,0.00019581,2]
[357046229,1743629432832,-2486.79,0.00019586,2]
[357046230,1743629432842,-2486.79,0.00019592,2]
[357046231,1743629432851,-2486.79,0.00019597,2]
[357046232,1743629432862,-2486.79,0.00019602,2]
[357046233,1743629432871,-2486.79,0.00019607,2]
[357046234,1743629432881,-2486.79,0.00019612,2]
[357046235,1743629432891,-30484.72032272,0.00019999,2]
[357046236,1743629432900,-1251.30010113,0.0002,5]
[357046237,1743629432909,-1013.0,0.0002,6]
[357046238,1743629432918,-150.0,0.0002,2]
[357046239,1743629432927,-2032.71230359,0.0002,2]
[357046240,1743629432936,-769.21511647,0.0002,4]
[357046241,1743629432946,-3159.12519881,0.0002,4]
[357046242,1743629432955,-2000.0,0.0002,4]
[357046243,1743629432964,-151.53,0.0002,2]
[357046244,1743629432973,-151.53,0.0002,2]
[357046245,1743629432983,-151.53,0.0002,2]
[357046246,1743629432992,-151.53,0.0002,2]
[357046247,1743629433001,-151.53,0.0002,2]
[357046248,1743629433010,-151.53,0.0002,2]
[357046249,1743629433019,-151.53,0.0002,2]
[357046250,1743629433028,-151.53,0.0002,2]
[357046251,1743629433037,-151.53,0.0002,2]
[357046252,1743629433046,-151.53,0.0002,2]
[357046253,1743629433055,-167.67,0.00020112,2]
[357046254,1743629433065,-1689.91,0.00020117,2]
[357046255,1743629433074,-300.0,0.00020183,2]
[357046256,1743629433084,-1000.0,0.0002028,2]
[357046257,1743629433094,-1000.0,0.00020452,2]
[357046258,1743629433103,-401.47455775,0.00020452,2]
[357046259,1743629433113,-153.18,0.00020683,2]
[357046260,1743629433123,-244.20908259,0.00020795,2]
[357046261,1743629433133,-167.67,0.00020851,2]
[357046262,1743629433142,-473.60863177,0.00020952,2]
[357046263,1743629433151,-1150.59014971,0.00021,2]
[357046264,1743629433161,-189.89919484,0.00021,2]
[357046265,1743629433171,-169.42,0.00021112,2]
[357046266,1743629433180,-170.46,0.00021647,2]
[357046267,1743629433189,-150.0,0.00021917,2]
[357046268,1743629433199,-246.84944726,0.00022,2]
[357046269,1743629433209,-500.0,0.00022,2]
[357046270,1743629433218,-500.0,0.00022329,2]
[357046271,1743629433227,-8456.28255034,0.00022344,2]
[357046272,1743629433237,-3483.55118777,0.00022344,2]
[357046273,1743629433246,-1689.91,0.0002238,2]
[357046274,1743629433256,-1000.0,0.00022533,2]
[357046275,1743629433265,-165.96,0.00022944,2]
[357046276,1743629433275,-153.18,0.00022981,2]
[357046277,1743629433285,-922.82452192,0.00023052,2]
[357046278,1743629433295,-150.0,0.00023287,2]
[357046279,1743629433305,-1000.0,0.00023652,2]
[357046280,1743629433315,-465.47,0.00023836,2]
[357046281,1743629433325,-5000.00180302,0.00024,5]
[357046282,1743629433335,-151.0,0.00024,7]
[357046283,1743629433345,-943.0,0.00024566,2]
[357046284,1743629433355,-1689.91,0.00024644,2]
[357046285,1743629433366,-150.0,0.00024657,2]
[357046286,1743629433376,-321.39,0.00024658,2]
[357046287,1743629433385,-1000.0,0.00024787,2]
[357046288,1743629433395,-151.53,0.0002479,2]
[357046289,1743629433405,-1144.12119965,0.00024799,10]
[357046290,1743629433415,-151.0,0.000248,7]
[357046291,1743629433425,-151.0,0.000248,7]
[357046292,1743629433435,-153.327159,0.000248,7]
[357046293,1743629433445,-151.0,0.000248,7]
[357046294,1743629433455,-151.0,0.000248,7]
[357046295,1743629433465,-158.990832,0.000248,7]
[357046296,1743629433474,-151.0,0.000248,7]
[357046297,1743629433484,-151.0,0.000248,7]
[357046298,1743629433494,-151.0,0.000248,7]
[357046299,1743629433504,-151.0,0.000248,7]
[357046300,1743629433514,-151.0,0.000248,7]
[357046301,1743629433523,-151.0,0.000248,7]
[357046302,1743629433532,-626.278734,0.000248,7]
[357046303,1743629433542,-626.278734,0.000248,7]
[357046304,1743629433551,-151.0,0.000248,7]
[357046305,1743629433560,-151.0,0.000248,7]
[357046306,1743629433570,-151.0,0.000248,7]
[357046307,1743629433579,-151.0,0.000248,7]
[357046308,1743629433589,-154.881148,0.000248,7]
[357046309,1743629433598,-156.216439,0.000248,7]
[357046310,1743629433608,-151.0,0.000248,7]
[357046311,1743629433618,-281.622357,0.000248,7]
[357046312,1743629433628,-151.0,0.000248,7]
[357046313,1743629433638,-151.0,0.000248,7]
[357046314,1743629433648,-153.776145,0.000248,7]
[357046315,1743629433659,-151.0,0.000248,7]
[357046316,1743629433668,-151.0,0.000248,7]
[357046317,1743629433678,-151.0,0.000248,7]
[357046318,1743629433687,-151.0,0.000248,7]
[357046319,1743629433698,-151.0,0.000248,7]
[357046320,1743629433708,-151.0,0.000248,7]
[357046321,1743629433717,-151.0,0.000248,7]
[357046322,1743629433727,-777.232824,0.000248,7]
[357046323,1743629433739,-777.232824,0.000248,7]
[357046324,1743629433749,-196.660901,0.000248,7]
[357046325,1743629433759,-151.0,0.000248,7]
[357046326,1743629433768,-151.0,0.000248,7]
[357046327,1743629433881,-151.0,0.000248,7]
[357046328,1743629433893,-151.0,0.000248,7]
[357046329,1743629433903,-208.217218,0.000248,7]
[357046330,1743629433913,-163.382266,0.000248,7]
[357046331,1743629433923,-271.211876,0.000248,7]
[357046332,1743629433932,-151.0,0.000248,7]
[357046333,1743629433942,-285.71505,0.000248,7]
[357046334,1743629433951,-287264.869736,0.000248,2]
[357046335,1743629433961,-151.0,0.000248,7]
[357046336,1743629433971,-169.485123,0.000248,7]
[357046337,1743629433981,-151.0,0.000248,7]
[357046338,1743629433990,-169.485123,0.000248,7]
[357046339,1743629434000,-2112.353602,0.000248,7]
[357046340,1743629434010,-2112.353602,0.000248,7]
[357046341,1743629434020,-4691.19,0.00024882,2]
[357046342,1743629434029,-152.206108,0.000249,7]
[357046343,1743629434039,-169.43723,0.000249,7]
[357046344,1743629434049,-151.0,0.000249,7]
[357046345,1743629434059,-156.11868,0.000249,7]
[357046346,1743629434070,-151.0,0.000249,7]
[357046347,1743629434079,-206.032648,0.000249,7]
[357046348,1743629434089,-151.757808,0.000249,7]
[357046349,1743629434099,-195.494394,0.000249,7]
[357046350,1743629434110,-169.15939,0.000249,7]
[357046351,1743629434120,-151.0,0.000249,7]
[357046352,1743629434130,-151.0,0.000249,7]
[357046353,1743629434139,-777.232824,0.000249,7]
[357046354,1743629434149,-777.232824,0.000249,7]
[357046355,1743629434158,-151.0,0.000249,7]
[357046356,1743629434168,-151.0,0.000249,7]
[357046357,1743629434178,-151.0,0.000249,7]
[357046358,1743629434188,-151.0,0.000249,7]
[357046359,1743629434198,-151.0,0.000249,7]
[357046360,1743629434207,-17137.1236805,0.000249,2]